[Event "Titled Tuesday Blitz May 16 Late 2023"]
[White "Mekhitarian, Krikor Sevag"]
[Black "Mirimanian, Hayk"]
[WhiteFideId "2107660"]
[BlackFideId "4700180"]
[WhiteElo "2604"]
[BlackElo "2280"]
[Result "1-0"]
[Round "07"]
[TimeControl "180+2"]
[Date "2023.05.16"]
[WhiteClock "0:00:06"]
[BlackClock "0:00:13"]

1. Nf3 {[%clk 0:03:00]}  d5 {[%clk 0:02:58]} 2. c4 {[%clk 0:02:57]}  e6 {[%clk 0:02:57]} 3. d4 {[%clk 0:02:56]}  Nf6 {[%clk 0:02:52]} 4. cxd5 {[%clk 0:02:56]}  exd5 {[%clk 0:02:51]} 5. Nc3 {[%clk 0:02:57]}  c6 {[%clk 0:02:50]} 6. Bf4 {[%clk 0:02:56]}  Bd6 {[%clk 0:02:48]} 7. Bxd6 {[%clk 0:02:56]}  Qxd6 {[%clk 0:02:48]} 8. e3 {[%clk 0:02:57]}  Bf5 {[%clk 0:02:44]} 9. Nh4 {[%clk 0:02:57]}  Bg4 {[%clk 0:02:35]} 10. Qb3 {[%clk 0:02:56]}  Qe7 {[%clk 0:02:32]} 11. h3 {[%clk 0:02:55]}  Be6 {[%clk 0:02:26]} 12. Qc2 {[%clk 0:02:43]}  O-O {[%clk 0:02:10]} 13. Bd3 {[%clk 0:02:42]}  c5 {[%clk 0:01:54]} 14. Nf3 {[%clk 0:02:42]}  Nc6 {[%clk 0:01:48]} 15. dxc5 {[%clk 0:02:32]}  Qxc5 {[%clk 0:01:46]} 16. Ne2 {[%clk 0:02:05]}  Nb4 {[%clk 0:01:40]} 17. Qd2 {[%clk 0:02:03]}  Ne4 {[%clk 0:01:36]} 18. Bxe4 {[%clk 0:02:02]}  dxe4 {[%clk 0:01:37]} 19. Nfd4 {[%clk 0:02:02]}  Nd3+ {[%clk 0:01:37]} 20. Kf1 {[%clk 0:02:02]}  Rac8 {[%clk 0:01:08]} 21. Kg1 {[%clk 0:01:51]}  Qe5 {[%clk 0:00:53]} 22. Nc1 {[%clk 0:01:39]}  Rxc1+ {[%clk 0:00:48]} 23. Rxc1 {[%clk 0:01:40]}  Nxc1 {[%clk 0:00:49]} 24. Qxc1 {[%clk 0:01:40]}  Rc8 {[%clk 0:00:50]} 25. Qd2 {[%clk 0:01:39]}  Bc4 {[%clk 0:00:49]} 26. b3 {[%clk 0:01:07]}  Bd3 {[%clk 0:00:49]} 27. f4 {[%clk 0:00:34]}  Qf6 {[%clk 0:00:17]} 28. Kh2 {[%clk 0:00:30]}  g5 {[%clk 0:00:08]} 29. Rc1 {[%clk 0:00:30]}  Rxc1 {[%clk 0:00:08]} 30. Qxc1 {[%clk 0:00:31]}  gxf4 {[%clk 0:00:09]} 31. Qc8+ {[%clk 0:00:32]}  Kg7 {[%clk 0:00:09]} 32. Qg4+ {[%clk 0:00:33]}  Kh8 {[%clk 0:00:09]} 33. Qxf4 {[%clk 0:00:32]}  Qxf4+ {[%clk 0:00:09]} 34. exf4 {[%clk 0:00:32]}  Kg7 {[%clk 0:00:08]} 35. Kg3 {[%clk 0:00:29]}  Kf6 {[%clk 0:00:08]} 36. Kf2 {[%clk 0:00:29]}  h5 {[%clk 0:00:07]} 37. g4 {[%clk 0:00:25]}  hxg4 {[%clk 0:00:07]} 38. hxg4 {[%clk 0:00:26]}  Ke7 {[%clk 0:00:08]} 39. Ke3 {[%clk 0:00:23]}  Kd6 {[%clk 0:00:08]} 40. Nf5+ {[%clk 0:00:24]}  Kd5 {[%clk 0:00:08]} 41. Nh6 {[%clk 0:00:23]}  Ke6 {[%clk 0:00:08]} 42. g5 {[%clk 0:00:22]}  Bb1 {[%clk 0:00:08]} 43. f5+ {[%clk 0:00:16]}  Ke7 {[%clk 0:00:07]} 44. a3 {[%clk 0:00:14]}  a5 {[%clk 0:00:07]} 45. Kd4 {[%clk 0:00:10]}  Bc2 {[%clk 0:00:07]} 46. b4 {[%clk 0:00:10]}  axb4 {[%clk 0:00:08]} 47. axb4 {[%clk 0:00:11]}  b6 {[%clk 0:00:09]} 48. Ng4 {[%clk 0:00:11]}  Bb1 {[%clk 0:00:08]} 49. Nf6 {[%clk 0:00:09]}  e3 {[%clk 0:00:08]} 50. Nd5+ {[%clk 0:00:10]}  Kd6 {[%clk 0:00:08]} 51. Nxe3 {[%clk 0:00:11]}  Kc6 {[%clk 0:00:08]} 52. Ke5 {[%clk 0:00:08]}  Kb5 {[%clk 0:00:07]} 53. Nd5 {[%clk 0:00:09]}  Ba2 {[%clk 0:00:06]} 54. g6 {[%clk 0:00:09]}  fxg6 {[%clk 0:00:05]} 55. fxg6 {[%clk 0:00:09]}  Bb1 {[%clk 0:00:06]} 56. g7 {[%clk 0:00:09]}  Bh7 {[%clk 0:00:07]} 57. Kd4 {[%clk 0:00:07]}  Bg8 {[%clk 0:00:07]} 58. Nf6 {[%clk 0:00:05]}  Bf7 {[%clk 0:00:07]} 59. Kc3 {[%clk 0:00:05]}  Ka4 {[%clk 0:00:07]} 60. g8=Q {[%clk 0:00:05]}  Bxg8 {[%clk 0:00:07]} 61. Nxg8 {[%clk 0:00:06]}  b5 {[%clk 0:00:08]} 62. Ne7 {[%clk 0:00:06]}  Ka3 {[%clk 0:00:09]} 63. Nd5 {[%clk 0:00:06]}  Ka4 {[%clk 0:00:10]} 64. Nc7 {[%clk 0:00:06]}  Ka3 {[%clk 0:00:10]} 65. Nxb5+ {[%clk 0:00:07]}  Ka4 {[%clk 0:00:11]} 66. Nd4 {[%clk 0:00:07]}  Ka3 {[%clk 0:00:12]} 67. Kc4 {[%clk 0:00:06]}  Ka4 {[%clk 0:00:13]} 1-0


[Site "https://www.chess.com"]

[Event "Titled Tuesday Blitz May 16 Late 2023"]
[White "Gritsenko, Nikolai"]
[Black "Naroditsky, Daniel"]
[WhiteFideId "14112493"]
[BlackFideId "2026961"]
[WhiteElo "2389"]
[BlackElo "2633"]
[Result "0-1"]
[Round "07"]
[TimeControl "180+2"]
[Date "2023.05.16"]
[WhiteClock "0:00:00"]
[BlackClock "0:00:27"]

1. d4 {[%clk 0:03:00]}  Nf6 {[%clk 0:03:00]} 2. Bg5 {[%clk 0:03:00]}  Ne4 {[%clk 0:03:00]} 3. h4 {[%clk 0:03:00]}  d5 {[%clk 0:03:00]} 4. Nd2 {[%clk 0:02:59]}  Nd6 {[%clk 0:03:00]} 5. e3 {[%clk 0:02:57]}  Bf5 {[%clk 0:02:59]} 6. g4 {[%clk 0:02:53]}  Bc8 {[%clk 0:02:59]} 7. Bf4 {[%clk 0:02:52]}  h5 {[%clk 0:02:54]} 8. g5 {[%clk 0:02:50]}  Bf5 {[%clk 0:02:55]} 9. Ngf3 {[%clk 0:02:43]}  e6 {[%clk 0:02:55]} 10. c4 {[%clk 0:02:43]}  Nd7 {[%clk 0:02:51]} 11. c5 {[%clk 0:02:38]}  Ne4 {[%clk 0:02:52]} 12. Nxe4 {[%clk 0:02:38]}  Bxe4 {[%clk 0:02:53]} 13. Bd3 {[%clk 0:02:34]}  Bxf3 {[%clk 0:02:53]} 14. Qxf3 {[%clk 0:02:33]}  g6 {[%clk 0:02:54]} 15. Qg3 {[%clk 0:02:23]}  Bg7 {[%clk 0:02:54]} 16. Bxc7 {[%clk 0:02:22]}  Qc8 {[%clk 0:02:55]} 17. Bd6 {[%clk 0:02:17]}  Qc6 {[%clk 0:02:55]} 18. a4 {[%clk 0:02:12]}  a6 {[%clk 0:02:56]} 19. b4 {[%clk 0:02:05]}  Bf8 {[%clk 0:02:54]} 20. Bf4 {[%clk 0:01:56]}  Bg7 {[%clk 0:02:53]} 21. O-O {[%clk 0:01:53]}  O-O {[%clk 0:02:54]} 22. b5 {[%clk 0:01:53]}  Qc8 {[%clk 0:02:54]} 23. Bd6 {[%clk 0:01:45]}  Re8 {[%clk 0:02:54]} 24. Rfc1 {[%clk 0:01:41]}  axb5 {[%clk 0:02:51]} 25. axb5 {[%clk 0:01:39]}  Rxa1 {[%clk 0:02:50]} 26. Rxa1 {[%clk 0:01:39]}  e5 {[%clk 0:02:51]} 27. Ra4 {[%clk 0:01:30]}  exd4 {[%clk 0:02:51]} 28. exd4 {[%clk 0:01:31]}  Nf8 {[%clk 0:02:52]} 29. Bf4 {[%clk 0:01:21]}  Ne6 {[%clk 0:02:38]} 30. Be3 {[%clk 0:01:21]}  Qd8 {[%clk 0:02:27]} 31. Kg2 {[%clk 0:01:08]}  Qd7 {[%clk 0:02:25]} 32. Qf3 {[%clk 0:00:56]}  Kh8 {[%clk 0:02:14]} 33. Ra7 {[%clk 0:00:53]}  Qc8 {[%clk 0:01:54]} 34. c6 {[%clk 0:00:49]}  bxc6 {[%clk 0:01:50]} 35. Qxf7 {[%clk 0:00:47]}  Nc7 {[%clk 0:01:28]} 36. Bf5 {[%clk 0:00:24]}  Qxf5 {[%clk 0:01:23]} 37. Qxf5 {[%clk 0:00:24]}  gxf5 {[%clk 0:01:24]} 38. Rxc7 {[%clk 0:00:23]}  cxb5 {[%clk 0:01:25]} 39. Rb7 {[%clk 0:00:23]}  Re4 {[%clk 0:01:22]} 40. g6 {[%clk 0:00:20]}  Rg4+ {[%clk 0:01:20]} 41. Kf3 {[%clk 0:00:20]}  Rxg6 {[%clk 0:01:21]} 42. Rxb5 {[%clk 0:00:20]}  Rg4 {[%clk 0:01:10]} 43. Rxd5 {[%clk 0:00:19]}  Rxh4 {[%clk 0:01:11]} 44. Rxf5 {[%clk 0:00:19]}  Kh7 {[%clk 0:01:09]} 45. d5 {[%clk 0:00:17]}  Kg6 {[%clk 0:01:07]} 46. Rf4 {[%clk 0:00:17]}  Rh1 {[%clk 0:01:07]} 47. Ke2 {[%clk 0:00:14]}  Be5 {[%clk 0:01:05]} 48. Re4 {[%clk 0:00:13]}  Kf5 {[%clk 0:01:01]} 49. Rc4 {[%clk 0:00:11]}  h4 {[%clk 0:01:02]} 50. Kf3 {[%clk 0:00:10]}  h3 {[%clk 0:01:01]} 51. Bf4 {[%clk 0:00:07]}  Bf6 {[%clk 0:00:53]} 52. Bg3 {[%clk 0:00:06]}  Rd1 {[%clk 0:00:51]} 53. d6 {[%clk 0:00:04]}  Rd3+ {[%clk 0:00:49]} 54. Ke2 {[%clk 0:00:04]}  Rd5 {[%clk 0:00:45]} 55. Rf4+ {[%clk 0:00:03]}  Kg6 {[%clk 0:00:45]} 56. Re4 {[%clk 0:00:02]}  Ra5 {[%clk 0:00:39]} 57. Kf3 {[%clk 0:00:02]}  Rh5 {[%clk 0:00:35]} 58. Bh2 {[%clk 0:00:01]}  Rd5 {[%clk 0:00:28]} 59. Kg4 {[%clk 0:00:00]}  Rd3 {[%clk 0:00:27]} 0-1


[Site "https://www.chess.com"]

[Event "Titled Tuesday Blitz May 16 Late 2023"]
[White "Vlassov, Nikolai"]
[Black "Paravyan, David"]
[WhiteFideId "4103360"]
[BlackFideId "4194985"]
[WhiteElo "2324"]
[BlackElo "2563"]
[Result "0-1"]
[Round "07"]
[TimeControl "180+2"]
[Date "2023.05.16"]
[WhiteClock "0:00:12"]
[BlackClock "0:02:29"]

1. e4 {[%clk 0:03:00]}  e5 {[%clk 0:03:00]} 2. Bc4 {[%clk 0:03:00]}  Nf6 {[%clk 0:03:00]} 3. d3 {[%clk 0:03:00]}  c6 {[%clk 0:03:01]} 4. Nf3 {[%clk 0:03:00]}  d5 {[%clk 0:03:01]} 5. Bb3 {[%clk 0:03:01]}  Bd6 {[%clk 0:03:02]} 6. Nc3 {[%clk 0:02:58]}  O-O {[%clk 0:03:01]} 7. exd5 {[%clk 0:02:58]}  Nxd5 {[%clk 0:03:02]} 8. Bxd5 {[%clk 0:02:58]}  cxd5 {[%clk 0:03:03]} 9. Nxd5 {[%clk 0:02:58]}  Nc6 {[%clk 0:03:03]} 10. O-O {[%clk 0:02:57]}  Bg4 {[%clk 0:03:04]} 11. Ne3 {[%clk 0:02:57]}  Bh5 {[%clk 0:03:04]} 12. Nf5 {[%clk 0:02:57]}  Qd7 {[%clk 0:03:02]} 13. Ng3 {[%clk 0:02:57]}  Bg6 {[%clk 0:03:00]} 14. Nh4 {[%clk 0:02:54]}  f5 {[%clk 0:03:00]} 15. Nxg6 {[%clk 0:02:53]}  hxg6 {[%clk 0:03:01]} 16. f3 {[%clk 0:02:22]}  Rad8 {[%clk 0:02:57]} 17. Ne2 {[%clk 0:02:12]}  e4 {[%clk 0:02:56]} 18. fxe4 {[%clk 0:02:10]}  fxe4 {[%clk 0:02:56]} 19. Bf4 {[%clk 0:02:04]}  Bc5+ {[%clk 0:02:52]} 20. Kh1 {[%clk 0:01:57]}  exd3 {[%clk 0:02:53]} 21. Qxd3 {[%clk 0:01:54]}  Qxd3 {[%clk 0:02:54]} 22. cxd3 {[%clk 0:01:54]}  Rxd3 {[%clk 0:02:55]} 23. Bg5 {[%clk 0:01:42]}  Rf5 {[%clk 0:02:52]} 24. Rxf5 {[%clk 0:01:33]}  gxf5 {[%clk 0:02:52]} 25. Nf4 {[%clk 0:01:33]}  Rd6 {[%clk 0:02:37]} 26. h3 {[%clk 0:01:13]}  Kf7 {[%clk 0:02:32]} 27. Re1 {[%clk 0:01:12]}  Bf2 {[%clk 0:02:30]} 28. Re2 {[%clk 0:00:12]}  Bg3 {[%clk 0:02:29]} 0-1


[Site "https://www.chess.com"]

[Event "Titled Tuesday Blitz May 16 Late 2023"]
[White "Lazavik, Denis"]
[Black "Maltsevskaya, Aleksandra"]
[WhiteFideId "13515110"]
[BlackFideId "24174041"]
[WhiteElo "2560"]
[BlackElo "2302"]
[Result "1-0"]
[Round "07"]
[TimeControl "180+2"]
[Date "2023.05.16"]
[WhiteClock "0:00:28"]
[BlackClock "0:00:00"]

1. d4 {[%clk 0:02:59]}  Nf6 {[%clk 0:01:38]} 2. c4 {[%clk 0:02:58]}  g6 {[%clk 0:01:38]} 3. g3 {[%clk 0:02:58]}  Bg7 {[%clk 0:01:39]} 4. Bg2 {[%clk 0:02:59]}  d6 {[%clk 0:01:40]} 5. Nc3 {[%clk 0:02:59]}  O-O {[%clk 0:01:41]} 6. Nf3 {[%clk 0:03:00]}  Nbd7 {[%clk 0:01:42]} 7. O-O {[%clk 0:03:00]}  e5 {[%clk 0:01:43]} 8. e4 {[%clk 0:03:01]}  exd4 {[%clk 0:01:44]} 9. Nxd4 {[%clk 0:03:01]}  Nc5 {[%clk 0:01:44]} 10. h3 {[%clk 0:03:02]}  Re8 {[%clk 0:01:45]} 11. Re1 {[%clk 0:03:02]}  Bd7 {[%clk 0:01:45]} 12. Rb1 {[%clk 0:03:02]}  a5 {[%clk 0:01:46]} 13. b3 {[%clk 0:03:02]}  Qc8 {[%clk 0:01:45]} 14. Kh2 {[%clk 0:03:02]}  a4 {[%clk 0:01:46]} 15. b4 {[%clk 0:02:51]}  Ne6 {[%clk 0:01:46]} 16. Nxe6 {[%clk 0:02:51]}  Bxe6 {[%clk 0:01:47]} 17. Nd5 {[%clk 0:02:52]}  Bxd5 {[%clk 0:01:39]} 18. cxd5 {[%clk 0:02:51]}  c6 {[%clk 0:01:39]} 19. dxc6 {[%clk 0:02:46]}  bxc6 {[%clk 0:01:40]} 20. Qxd6 {[%clk 0:02:40]}  Nd5 {[%clk 0:01:24]} 21. Qc5 {[%clk 0:01:33]}  Nc3 {[%clk 0:00:24]} 22. Rb2 {[%clk 0:01:32]}  Rb8 {[%clk 0:00:20]} 23. e5 {[%clk 0:01:24]}  Nd5 {[%clk 0:00:10]} 24. b5 {[%clk 0:00:53]}  Bxe5 {[%clk 0:00:09]} 25. Rbe2 {[%clk 0:00:52]}  Rxb5 {[%clk 0:00:04]} 26. Qa3 {[%clk 0:00:46]}  Nf6 {[%clk 0:00:04]} 27. Qxa4 {[%clk 0:00:41]}  Bc3 {[%clk 0:00:02]} 28. Rxe8+ {[%clk 0:00:40]}  Nxe8 {[%clk 0:00:03]} 29. Rd1 {[%clk 0:00:37]}  Bf6 {[%clk 0:00:02]} 30. Qc4 {[%clk 0:00:35]}  Rb6 {[%clk 0:00:01]} 31. Be3 {[%clk 0:00:35]}  Ra6 {[%clk 0:00:01]} 32. a4 {[%clk 0:00:34]}  Nc7 {[%clk 0:00:01]} 33. Bxc6 {[%clk 0:00:27]}  Ne6 {[%clk 0:00:00]} 34. Rc1 {[%clk 0:00:28]} 1-0


[Site "https://www.chess.com"]

[Event "Titled Tuesday Blitz May 16 Late 2023"]
[White "Rodshtein, Maxim"]
[Black "Manukyan, Sargis A."]
[WhiteFideId "2806851"]
[BlackFideId "13303970"]
[WhiteElo "2555"]
[BlackElo "2187"]
[Result "1-0"]
[Round "07"]
[TimeControl "180+2"]
[Date "2023.05.16"]
[WhiteClock "0:00:17"]
[BlackClock "0:00:16"]

1. d4 {[%clk 0:03:00]}  d5 {[%clk 0:03:00]} 2. Bf4 {[%clk 0:03:00]}  Nf6 {[%clk 0:03:00]} 3. e3 {[%clk 0:03:00]}  Bg4 {[%clk 0:02:56]} 4. f3 {[%clk 0:02:58]}  Bd7 {[%clk 0:02:56]} 5. c4 {[%clk 0:02:54]}  e6 {[%clk 0:02:54]} 6. Nc3 {[%clk 0:02:51]}  c5 {[%clk 0:02:54]} 7. cxd5 {[%clk 0:02:47]}  exd5 {[%clk 0:02:39]} 8. Nge2 {[%clk 0:02:42]}  cxd4 {[%clk 0:02:35]} 9. Nxd4 {[%clk 0:02:42]}  a6 {[%clk 0:02:29]} 10. Bd3 {[%clk 0:02:37]}  Nc6 {[%clk 0:02:29]} 11. O-O {[%clk 0:02:37]}  Bc5 {[%clk 0:02:18]} 12. Nce2 {[%clk 0:02:33]}  O-O {[%clk 0:02:17]} 13. Rc1 {[%clk 0:02:05]}  Ba7 {[%clk 0:02:17]} 14. Kh1 {[%clk 0:01:44]}  h6 {[%clk 0:02:17]} 15. Qb3 {[%clk 0:01:32]}  Qb6 {[%clk 0:02:06]} 16. Qxb6 {[%clk 0:01:18]}  Bxb6 {[%clk 0:02:07]} 17. Nb3 {[%clk 0:00:56]}  Rfe8 {[%clk 0:02:06]} 18. Nc5 {[%clk 0:00:56]}  Bxc5 {[%clk 0:02:00]} 19. Rxc5 {[%clk 0:00:57]}  g5 {[%clk 0:02:01]} 20. Bg3 {[%clk 0:00:54]}  Rxe3 {[%clk 0:02:01]} 21. Nc1 {[%clk 0:00:39]}  Nb4 {[%clk 0:01:48]} 22. Bb1 {[%clk 0:00:38]}  Bb5 {[%clk 0:01:40]} 23. Rd1 {[%clk 0:00:38]}  Nc6 {[%clk 0:01:12]} 24. b3 {[%clk 0:00:36]}  a5 {[%clk 0:01:09]} 25. Bf2 {[%clk 0:00:32]}  Re6 {[%clk 0:01:06]} 26. Rxb5 {[%clk 0:00:32]}  a4 {[%clk 0:01:02]} 27. Rxb7 {[%clk 0:00:29]}  axb3 {[%clk 0:01:02]} 28. Nxb3 {[%clk 0:00:29]}  Ne5 {[%clk 0:00:59]} 29. Nd4 {[%clk 0:00:28]}  Rea6 {[%clk 0:00:59]} 30. Nf5 {[%clk 0:00:28]}  h5 {[%clk 0:00:53]} 31. Bd4 {[%clk 0:00:27]}  Nfd7 {[%clk 0:00:51]} 32. Ne7+ {[%clk 0:00:25]}  Kf8 {[%clk 0:00:48]} 33. Nxd5 {[%clk 0:00:25]}  Rd6 {[%clk 0:00:46]} 34. Nc7 {[%clk 0:00:23]}  Ra4 {[%clk 0:00:44]} 35. Nb5 {[%clk 0:00:21]}  Rd5 {[%clk 0:00:43]} 36. Be4 {[%clk 0:00:21]}  Rdxd4 {[%clk 0:00:30]} 37. Rxd4 {[%clk 0:00:18]}  Rxa2 {[%clk 0:00:29]} 38. Nc3 {[%clk 0:00:18]}  Ra3 {[%clk 0:00:28]} 39. Nd5 {[%clk 0:00:14]}  Nc5 {[%clk 0:00:26]} 40. Rb8+ {[%clk 0:00:14]}  Kg7 {[%clk 0:00:26]} 41. Rb1 {[%clk 0:00:15]}  Ne6 {[%clk 0:00:25]} 42. Rdd1 {[%clk 0:00:14]}  Nf4 {[%clk 0:00:26]} 43. Nxf4 {[%clk 0:00:14]}  gxf4 {[%clk 0:00:26]} 44. h4 {[%clk 0:00:15]}  Ra2 {[%clk 0:00:25]} 45. Rd5 {[%clk 0:00:15]}  Nc4 {[%clk 0:00:22]} 46. Rg5+ {[%clk 0:00:14]}  Kf6 {[%clk 0:00:22]} 47. Rf5+ {[%clk 0:00:13]}  Ke7 {[%clk 0:00:20]} 48. Re1 {[%clk 0:00:13]}  Ne3 {[%clk 0:00:20]} 49. Rg5 {[%clk 0:00:11]}  Kf6 {[%clk 0:00:16]} 50. Kh2 {[%clk 0:00:10]}  Ke6 {[%clk 0:00:16]} 51. Kh3 {[%clk 0:00:11]}  f6 {[%clk 0:00:17]} 52. Rg6 {[%clk 0:00:10]}  Kf7 {[%clk 0:00:17]} 53. Rb1 {[%clk 0:00:10]}  f5 {[%clk 0:00:17]} 54. Bxf5 {[%clk 0:00:08]}  Nxf5 {[%clk 0:00:17]} 55. Rg5 {[%clk 0:00:09]}  Ne3 {[%clk 0:00:16]} 56. Rb4 {[%clk 0:00:09]}  Nxg2 {[%clk 0:00:16]} 57. Rxg2 {[%clk 0:00:08]}  Ra3 {[%clk 0:00:16]} 58. Rxf4+ {[%clk 0:00:08]}  Ke6 {[%clk 0:00:16]} 59. Rg5 {[%clk 0:00:09]}  Ra2 {[%clk 0:00:16]} 60. Re4+ {[%clk 0:00:09]}  Kf6 {[%clk 0:00:16]} 61. Kg3 {[%clk 0:00:10]}  Ra6 {[%clk 0:00:16]} 62. Kf4 {[%clk 0:00:10]}  Kf7 {[%clk 0:00:16]} 63. Rxh5 {[%clk 0:00:11]}  Kg7 {[%clk 0:00:16]} 64. Rf5 {[%clk 0:00:12]}  Kh7 {[%clk 0:00:16]} 65. h5 {[%clk 0:00:12]}  Ra7 {[%clk 0:00:16]} 66. Kg5 {[%clk 0:00:13]}  Rb7 {[%clk 0:00:16]} 67. Re6 {[%clk 0:00:13]}  Rg7+ {[%clk 0:00:16]} 68. Rg6 {[%clk 0:00:13]}  Ra7 {[%clk 0:00:17]} 69. Rh6+ {[%clk 0:00:14]}  Kg7 {[%clk 0:00:17]} 70. Rg6+ {[%clk 0:00:15]}  Kh7 {[%clk 0:00:17]} 71. f4 {[%clk 0:00:15]}  Kh8 {[%clk 0:00:17]} 72. h6 {[%clk 0:00:15]}  Kh7 {[%clk 0:00:18]} 73. Rg7+ {[%clk 0:00:16]}  Rxg7+ {[%clk 0:00:15]} 74. hxg7 {[%clk 0:00:17]}  Kg8 {[%clk 0:00:16]} 75. Kf6 {[%clk 0:00:16]}  Kh7 {[%clk 0:00:15]} 76. Rh5+ {[%clk 0:00:17]}  Kg8 {[%clk 0:00:16]} 77. Rh8# {[%clk 0:00:17]} 1-0


[Site "https://www.chess.com"]

[Event "Titled Tuesday Blitz May 16 Late 2023"]
[White "Bordi, Kevin"]
[Black "chess123456s"]
[WhiteFideId "621862"]
[WhiteElo "2799"]
[BlackElo "2616"]
[Result "1-0"]
[Round "07"]
[TimeControl "180+2"]
[Date "2023.05.16"]
[WhiteClock "0:02:01"]
[BlackClock "0:01:36"]

1. e4 {[%clk 0:03:00]}  e5 {[%clk 0:02:59]} 2. Nf3 {[%clk 0:03:01]}  Nc6 {[%clk 0:02:59]} 3. d4 {[%clk 0:03:02]}  exd4 {[%clk 0:03:00]} 4. Nxd4 {[%clk 0:03:02]}  Nf6 {[%clk 0:03:00]} 5. Nxc6 {[%clk 0:03:02]}  bxc6 {[%clk 0:03:01]} 6. e5 {[%clk 0:03:03]}  Qe7 {[%clk 0:03:02]} 7. Qe2 {[%clk 0:03:03]}  Nd5 {[%clk 0:03:02]} 8. c4 {[%clk 0:03:04]}  Ba6 {[%clk 0:03:01]} 9. b3 {[%clk 0:03:04]}  g6 {[%clk 0:03:00]} 10. g3 {[%clk 0:03:03]}  Bg7 {[%clk 0:03:00]} 11. Bb2 {[%clk 0:03:04]}  O-O {[%clk 0:02:57]} 12. Bg2 {[%clk 0:03:05]}  Rfe8 {[%clk 0:02:57]} 13. O-O {[%clk 0:03:05]}  Bxe5 {[%clk 0:02:54]} 14. Qxe5 {[%clk 0:03:06]}  Qxe5 {[%clk 0:02:55]} 15. Bxe5 {[%clk 0:03:07]}  Rxe5 {[%clk 0:02:55]} 16. cxd5 {[%clk 0:03:08]}  cxd5 {[%clk 0:02:56]} 17. Rd1 {[%clk 0:03:01]}  c6 {[%clk 0:02:56]} 18. Nc3 {[%clk 0:02:56]}  Rae8 {[%clk 0:02:52]} 19. Bf1 {[%clk 0:02:55]}  Bxf1 {[%clk 0:02:42]} 20. Kxf1 {[%clk 0:02:55]}  Kg7 {[%clk 0:02:37]} 21. Rd2 {[%clk 0:02:56]}  f5 {[%clk 0:02:35]} 22. Na4 {[%clk 0:02:56]}  d6 {[%clk 0:02:33]} 23. Rc1 {[%clk 0:02:55]}  c5 {[%clk 0:02:33]} 24. Rcd1 {[%clk 0:02:53]}  d4 {[%clk 0:02:33]} 25. Nb2 {[%clk 0:02:54]}  R5e6 {[%clk 0:02:29]} 26. Nd3 {[%clk 0:02:54]}  a5 {[%clk 0:02:27]} 27. Rc2 {[%clk 0:02:49]}  Rb8 {[%clk 0:02:23]} 28. Rc4 {[%clk 0:02:46]}  g5 {[%clk 0:02:19]} 29. Ra4 {[%clk 0:02:45]}  Rb5 {[%clk 0:02:18]} 30. Nb2 {[%clk 0:02:45]}  d5 {[%clk 0:02:16]} 31. Nd3 {[%clk 0:02:43]}  Kf6 {[%clk 0:02:12]} 32. Rc1 {[%clk 0:02:43]}  Rc6 {[%clk 0:02:07]} 33. Rxd4 {[%clk 0:02:41]}  Ke6 {[%clk 0:01:59]} 34. Ra4 {[%clk 0:02:40]}  Kd6 {[%clk 0:01:58]} 35. Kg2 {[%clk 0:02:37]}  h5 {[%clk 0:01:56]} 36. h4 {[%clk 0:02:37]}  g4 {[%clk 0:01:55]} 37. Nf4 {[%clk 0:02:37]}  Rcb6 {[%clk 0:01:50]} 38. Nxh5 {[%clk 0:02:35]}  Ra6 {[%clk 0:01:51]} 39. Nf4 {[%clk 0:02:34]}  Rb4 {[%clk 0:01:52]} 40. Rxc5 {[%clk 0:02:07]}  Kxc5 {[%clk 0:01:32]} 41. Nd3+ {[%clk 0:02:07]}  Kb5 {[%clk 0:01:32]} 42. Nxb4 {[%clk 0:02:08]}  axb4 {[%clk 0:01:31]} 43. Rxa6 {[%clk 0:02:09]}  Kxa6 {[%clk 0:01:32]} 44. h5 {[%clk 0:02:09]}  f4 {[%clk 0:01:29]} 45. gxf4 {[%clk 0:02:08]}  g3 {[%clk 0:01:30]} 46. fxg3 {[%clk 0:02:07]}  Kb5 {[%clk 0:01:31]} 47. h6 {[%clk 0:02:07]}  Kc5 {[%clk 0:01:31]} 48. h7 {[%clk 0:02:08]}  Kd4 {[%clk 0:01:32]} 49. h8=Q+ {[%clk 0:02:09]}  Kd3 {[%clk 0:01:33]} 50. Qe5 {[%clk 0:02:09]}  d4 {[%clk 0:01:33]} 51. f5 {[%clk 0:02:09]}  Kc3 {[%clk 0:01:34]} 52. f6 {[%clk 0:02:10]}  Kb2 {[%clk 0:01:34]} 53. Qxd4+ {[%clk 0:02:10]}  Ka3 {[%clk 0:01:35]} 54. Qc4 {[%clk 0:02:05]}  Kb2 {[%clk 0:01:35]} 55. f7 {[%clk 0:02:05]}  Ka3 {[%clk 0:01:35]} 56. f8=Q {[%clk 0:02:05]}  Kb2 {[%clk 0:01:35]} 57. Qf2+ {[%clk 0:02:02]}  Ka3 {[%clk 0:01:36]} 58. Qa6# {[%clk 0:02:01]} 1-0


[Site "https://www.chess.com"]

[Event "Titled Tuesday Blitz May 16 Late 2023"]
[White "Averjanov, Alexey"]
[Black "Spitzl, Vinzent"]
[WhiteFideId "14109867"]
[BlackFideId "12901253"]
[WhiteElo "2789"]
[BlackElo "2225"]
[Result "1/2-1/2"]
[Round "07"]
[TimeControl "180+2"]
[Date "2023.05.16"]
[WhiteClock "0:00:45"]
[BlackClock "0:00:24"]

1. d4 {[%clk 0:03:00]}  Nf6 {[%clk 0:02:57]} 2. c4 {[%clk 0:03:01]}  e6 {[%clk 0:02:56]} 3. Nf3 {[%clk 0:03:01]}  d5 {[%clk 0:02:55]} 4. e3 {[%clk 0:03:01]}  Be7 {[%clk 0:02:53]} 5. Nbd2 {[%clk 0:03:01]}  O-O {[%clk 0:02:51]} 6. Bd3 {[%clk 0:03:01]}  b6 {[%clk 0:02:51]} 7. O-O {[%clk 0:03:00]}  Bb7 {[%clk 0:02:52]} 8. Qe2 {[%clk 0:03:01]}  Nbd7 {[%clk 0:02:52]} 9. e4 {[%clk 0:03:01]}  dxe4 {[%clk 0:02:49]} 10. Nxe4 {[%clk 0:03:02]}  Nxe4 {[%clk 0:02:49]} 11. Bxe4 {[%clk 0:03:03]}  Bxe4 {[%clk 0:02:49]} 12. Qxe4 {[%clk 0:03:04]}  Nf6 {[%clk 0:02:49]} 13. Qe2 {[%clk 0:03:04]}  c5 {[%clk 0:02:49]} 14. Rd1 {[%clk 0:03:02]}  Qc7 {[%clk 0:02:42]} 15. b3 {[%clk 0:03:02]}  Rfd8 {[%clk 0:02:39]} 16. Bb2 {[%clk 0:03:02]}  cxd4 {[%clk 0:02:34]} 17. Nxd4 {[%clk 0:03:03]}  Qb7 {[%clk 0:02:34]} 18. Rd3 {[%clk 0:03:02]}  Qe4 {[%clk 0:02:28]} 19. Re3 {[%clk 0:03:02]}  Qg4 {[%clk 0:02:27]} 20. Qxg4 {[%clk 0:02:39]}  Nxg4 {[%clk 0:02:27]} 21. Rg3 {[%clk 0:02:39]}  h5 {[%clk 0:01:35]} 22. Nc6 {[%clk 0:02:32]}  Bd6 {[%clk 0:01:35]} 23. Nxd8 {[%clk 0:01:51]}  Bxg3 {[%clk 0:01:34]} 24. hxg3 {[%clk 0:01:44]}  Rxd8 {[%clk 0:01:34]} 25. Bc3 {[%clk 0:01:29]}  Rd3 {[%clk 0:01:30]} 26. Rc1 {[%clk 0:01:29]}  Nf6 {[%clk 0:01:18]} 27. Kf1 {[%clk 0:01:26]}  Ne4 {[%clk 0:01:13]} 28. Be1 {[%clk 0:01:17]}  f6 {[%clk 0:00:46]} 29. Ke2 {[%clk 0:01:17]}  Rd7 {[%clk 0:00:44]} 30. f3 {[%clk 0:01:15]}  Nc5 {[%clk 0:00:37]} 31. Rd1 {[%clk 0:01:08]}  Rxd1 {[%clk 0:00:33]} 32. Kxd1 {[%clk 0:01:09]}  Kf7 {[%clk 0:00:30]} 33. Kc2 {[%clk 0:01:08]}  e5 {[%clk 0:00:30]} 34. b4 {[%clk 0:01:01]}  Nd7 {[%clk 0:00:29]} 35. Kd3 {[%clk 0:00:59]}  Ke6 {[%clk 0:00:29]} 36. Bf2 {[%clk 0:00:56]}  g5 {[%clk 0:00:27]} 37. a3 {[%clk 0:00:48]}  Kd6 {[%clk 0:00:26]} 38. Be3 {[%clk 0:00:48]}  Ke6 {[%clk 0:00:26]} 39. Bf2 {[%clk 0:00:46]}  Kd6 {[%clk 0:00:26]} 40. Be3 {[%clk 0:00:46]}  Ke6 {[%clk 0:00:24]} 41. Bf2 {[%clk 0:00:45]} 1/2-1/2


[Site "https://www.chess.com"]